[Event "Titled Tuesday Blitz May 30 Late 2023"]
[White "Stachanczyk, Jacek"]
[Black "Burke, Paul"]
[WhiteFideId "1116657"]
[BlackFideId "2605767"]
[WhiteElo "2084"]
[BlackElo "1903"]
[Result "1-0"]
[Round "03"]
[TimeControl "180+2"]
[Date "2023.05.31"]
[WhiteClock "0:02:15"]
[BlackClock "0:00:08"]

1. e4 {[%clk 0:02:57]}  e5 {[%clk 0:02:03]} 2. Nf3 {[%clk 0:02:56]}  Nc6 {[%clk 0:02:03]} 3. Bb5 {[%clk 0:02:56]}  f5 {[%clk 0:02:02]} 4. d3 {[%clk 0:02:56]}  Nf6 {[%clk 0:02:01]} 5. exf5 {[%clk 0:02:55]}  Be7 {[%clk 0:02:00]} 6. O-O {[%clk 0:02:55]}  O-O {[%clk 0:02:00]} 7. Re1 {[%clk 0:02:50]}  d6 {[%clk 0:01:59]} 8. d4 {[%clk 0:02:50]}  e4 {[%clk 0:01:50]} 9. Ng5 {[%clk 0:02:47]}  Bxf5 {[%clk 0:01:44]} 10. d5 {[%clk 0:02:44]}  Ne5 {[%clk 0:01:32]} 11. Nc3 {[%clk 0:02:32]}  a6 {[%clk 0:01:00]} 12. Bf1 {[%clk 0:02:30]}  Nfg4 {[%clk 0:00:19]} 13. Ngxe4 {[%clk 0:02:26]}  Bxe4 {[%clk 0:00:15]} 14. Nxe4 {[%clk 0:02:27]}  Nxf2 {[%clk 0:00:09]} 15. Nxf2 {[%clk 0:02:26]}  Bh4 {[%clk 0:00:08]} 16. Be3 {[%clk 0:02:15]} 1-0


[Site "https://www.chess.com"]

[Event "Titled Tuesday Blitz May 30 Late 2023"]
[White "Naroditsky, Daniel"]
[Black "Holt, Conrad"]
[WhiteFideId "2026961"]
[BlackFideId "2034387"]
[WhiteElo "2633"]
[BlackElo "2592"]
[Result "1/2-1/2"]
[Round "04"]
[TimeControl "180+2"]
[Date "2023.05.31"]
[WhiteClock "0:00:04"]
[BlackClock "0:00:05"]

1. d4 {[%clk 0:03:00]}  d5 {[%clk 0:03:00]} 2. Nc3 {[%clk 0:03:01]}  Nf6 {[%clk 0:02:59]} 3. Bf4 {[%clk 0:03:01]}  Bf5 {[%clk 0:02:57]} 4. e3 {[%clk 0:03:01]}  e6 {[%clk 0:02:55]} 5. Nf3 {[%clk 0:03:01]}  Bb4 {[%clk 0:02:48]} 6. Bd3 {[%clk 0:03:01]}  O-O {[%clk 0:02:15]} 7. O-O {[%clk 0:02:57]}  Bxd3 {[%clk 0:02:09]} 8. cxd3 {[%clk 0:02:56]}  Nh5 {[%clk 0:02:03]} 9. Be5 {[%clk 0:02:36]}  Nc6 {[%clk 0:02:00]} 10. Rc1 {[%clk 0:02:26]}  f6 {[%clk 0:01:51]} 11. Bg3 {[%clk 0:02:24]}  Nxg3 {[%clk 0:01:50]} 12. hxg3 {[%clk 0:02:25]}  Qd7 {[%clk 0:01:46]} 13. Qb3 {[%clk 0:02:23]}  Rab8 {[%clk 0:01:35]} 14. e4 {[%clk 0:02:18]}  Rfd8 {[%clk 0:01:22]} 15. Ne2 {[%clk 0:02:01]}  Bd6 {[%clk 0:01:02]} 16. exd5 {[%clk 0:01:55]}  exd5 {[%clk 0:01:02]} 17. Qxd5+ {[%clk 0:01:52]}  Qf7 {[%clk 0:01:02]} 18. Qxf7+ {[%clk 0:01:39]}  Kxf7 {[%clk 0:01:03]} 19. a3 {[%clk 0:01:36]}  Rd7 {[%clk 0:01:00]} 20. Rc4 {[%clk 0:01:30]}  Ne7 {[%clk 0:00:56]} 21. Rc2 {[%clk 0:01:20]}  c6 {[%clk 0:00:53]} 22. Nc3 {[%clk 0:01:20]}  Bc7 {[%clk 0:00:51]} 23. Re1 {[%clk 0:01:15]}  Bb6 {[%clk 0:00:48]} 24. Na4 {[%clk 0:00:51]}  Bxd4 {[%clk 0:00:45]} 25. Nxd4 {[%clk 0:00:48]}  Rxd4 {[%clk 0:00:45]} 26. Nc5 {[%clk 0:00:48]}  b6 {[%clk 0:00:32]} 27. Rce2 {[%clk 0:00:36]}  Ng6 {[%clk 0:00:32]} 28. Na6 {[%clk 0:00:20]}  Rc8 {[%clk 0:00:31]} 29. Re3 {[%clk 0:00:19]}  c5 {[%clk 0:00:15]} 30. b4 {[%clk 0:00:20]}  Ne5 {[%clk 0:00:15]} 31. bxc5 {[%clk 0:00:18]}  bxc5 {[%clk 0:00:15]} 32. Rb1 {[%clk 0:00:19]}  Rc6 {[%clk 0:00:09]} 33. f4 {[%clk 0:00:04]}  Nd7 {[%clk 0:00:06]} 34. Nb8 {[%clk 0:00:04]}  Rb6 {[%clk 0:00:06]} 35. Rxb6 {[%clk 0:00:03]}  Nxb6 {[%clk 0:00:06]} 36. Nc6 {[%clk 0:00:04]}  Ra4 {[%clk 0:00:05]} 37. f5 {[%clk 0:00:03]}  Nd5 {[%clk 0:00:05]} 38. Nd8+ {[%clk 0:00:04]}  Kf8 {[%clk 0:00:05]} 39. Ne6+ {[%clk 0:00:03]}  Kf7 {[%clk 0:00:04]} 40. Nd8+ {[%clk 0:00:03]}  Kf8 {[%clk 0:00:04]} 41. Ne6+ {[%clk 0:00:04]}  Kf7 {[%clk 0:00:05]} 42. Nd8+ {[%clk 0:00:04]} 1/2-1/2


[Site "https://www.chess.com"]

[Event "Titled Tuesday Blitz May 30 Late 2023"]
[White "Vachier-Lagrave, Maxime"]
[Black "Milikow, Yoav"]
[WhiteFideId "623539"]
[BlackFideId "2822237"]
[WhiteElo "2723"]
[BlackElo "2410"]
[Result "1-0"]
[Round "04"]
[TimeControl "180+2"]
[Date "2023.05.31"]
[WhiteClock "0:00:54"]
[BlackClock "0:00:07"]

1. e4 {[%clk 0:02:58]}  e5 {[%clk 0:02:58]} 2. Nf3 {[%clk 0:02:58]}  Nf6 {[%clk 0:02:58]} 3. d4 {[%clk 0:02:56]}  Nxe4 {[%clk 0:02:57]} 4. Bd3 {[%clk 0:02:56]}  Nc6 {[%clk 0:02:58]} 5. d5 {[%clk 0:02:56]}  Nc5 {[%clk 0:02:57]} 6. O-O {[%clk 0:02:54]}  e4 {[%clk 0:02:25]} 7. Re1 {[%clk 0:02:43]}  Ne7 {[%clk 0:02:04]} 8. Bxe4 {[%clk 0:02:42]}  Nxe4 {[%clk 0:02:05]} 9. Rxe4 {[%clk 0:02:42]}  d6 {[%clk 0:02:06]} 10. Qd4 {[%clk 0:02:37]}  Bf5 {[%clk 0:01:56]} 11. Re2 {[%clk 0:02:35]}  Qd7 {[%clk 0:01:46]} 12. Nc3 {[%clk 0:02:34]}  f6 {[%clk 0:01:38]} 13. Bd2 {[%clk 0:02:29]}  Kf7 {[%clk 0:01:36]} 14. Rae1 {[%clk 0:02:29]}  a6 {[%clk 0:01:21]} 15. Qb4 {[%clk 0:01:58]}  b6 {[%clk 0:00:49]} 16. Nd4 {[%clk 0:01:57]}  Bg4 {[%clk 0:00:41]} 17. f3 {[%clk 0:01:56]}  Bf5 {[%clk 0:00:39]} 18. Ne6 {[%clk 0:01:52]}  Re8 {[%clk 0:00:32]} 19. Qf4 {[%clk 0:01:28]}  g5 {[%clk 0:00:30]} 20. Qd4 {[%clk 0:01:22]}  Rg8 {[%clk 0:00:26]} 21. Ne4 {[%clk 0:01:13]}  Nxd5 {[%clk 0:00:18]} 22. Nxf8 {[%clk 0:01:05]}  Qc6 {[%clk 0:00:11]} 23. Nxg5+ {[%clk 0:00:56]}  Rxg5 {[%clk 0:00:07]} 24. Rxe8 {[%clk 0:00:56]}  Nf4 {[%clk 0:00:07]} 25. R1e7+ {[%clk 0:00:54]} 1-0


[Site "https://www.chess.com"]

[Event "Titled Tuesday Blitz May 30 Late 2023"]
[White "Bordi, Kevin"]
[Black "Bluebaum, Matthias"]
[WhiteFideId "621862"]
[BlackFideId "24651516"]
[WhiteElo "2771"]
[BlackElo "2639"]
[Result "0-1"]
[Round "04"]
[TimeControl "180+2"]
[Date "2023.05.31"]
[WhiteClock "0:01:03"]
[BlackClock "0:01:51"]

1. e4 {[%clk 0:03:00]}  e6 {[%clk 0:03:00]} 2. d4 {[%clk 0:03:00]}  d5 {[%clk 0:03:01]} 3. Nd2 {[%clk 0:03:01]}  Nf6 {[%clk 0:03:01]} 4. e5 {[%clk 0:03:01]}  Nfd7 {[%clk 0:03:02]} 5. c3 {[%clk 0:03:02]}  c5 {[%clk 0:03:02]} 6. Ngf3 {[%clk 0:03:03]}  Nc6 {[%clk 0:03:03]} 7. Bd3 {[%clk 0:03:03]}  f6 {[%clk 0:03:03]} 8. exf6 {[%clk 0:03:03]}  Nxf6 {[%clk 0:03:04]} 9. O-O {[%clk 0:03:03]}  cxd4 {[%clk 0:03:05]} 10. cxd4 {[%clk 0:03:03]}  Bd6 {[%clk 0:03:06]} 11. Re1 {[%clk 0:03:04]}  O-O {[%clk 0:03:06]} 12. Nf1 {[%clk 0:03:05]}  Qb6 {[%clk 0:03:06]} 13. Bg5 {[%clk 0:03:00]}  Qxb2 {[%clk 0:02:59]} 14. Ng3 {[%clk 0:02:49]}  Qa3 {[%clk 0:02:43]} 15. Re3 {[%clk 0:02:44]}  Qa5 {[%clk 0:02:42]} 16. Qb1 {[%clk 0:02:17]}  Qb6 {[%clk 0:02:22]} 17. Qd1 {[%clk 0:01:51]}  Bd7 {[%clk 0:02:15]} 18. Rb1 {[%clk 0:01:51]}  Qc7 {[%clk 0:02:15]} 19. Rc1 {[%clk 0:01:52]}  Bf4 {[%clk 0:02:04]} 20. Bxf4 {[%clk 0:01:15]}  Qxf4 {[%clk 0:02:05]} 21. Ne5 {[%clk 0:01:15]}  Nxe5 {[%clk 0:01:53]} 22. dxe5 {[%clk 0:01:14]}  Ng4 {[%clk 0:01:51]} 23. Rf3 {[%clk 0:01:11]}  Qh6 {[%clk 0:01:51]} 24. Rxf8+ {[%clk 0:01:04]}  Rxf8 {[%clk 0:01:52]} 25. h3 {[%clk 0:01:03]}  Nxf2 {[%clk 0:01:51]} 0-1


[Site "https://www.chess.com"]

[Event "Titled Tuesday Blitz May 30 Late 2023"]
[White "Deac, Bogdan-Daniel"]
[Black "Schmakel, Sam"]
[WhiteFideId "1226380"]
[BlackFideId "2039311"]
[WhiteElo "2649"]
[BlackElo "2356"]
[Result "0-1"]
[Round "04"]
[TimeControl "180+2"]
[Date "2023.05.31"]
[WhiteClock "0:00:03"]
[BlackClock "0:00:04"]

1. g3 {[%clk 0:03:00]}  d5 {[%clk 0:02:54]} 2. Bg2 {[%clk 0:03:01]}  c5 {[%clk 0:02:53]} 3. d3 {[%clk 0:03:01]}  Nc6 {[%clk 0:02:52]} 4. e4 {[%clk 0:03:01]}  Nf6 {[%clk 0:02:49]} 5. Nc3 {[%clk 0:03:00]}  d4 {[%clk 0:02:48]} 6. Nce2 {[%clk 0:03:00]}  e5 {[%clk 0:02:47]} 7. f4 {[%clk 0:03:00]}  Bd6 {[%clk 0:02:47]} 8. Nf3 {[%clk 0:02:56]}  O-O {[%clk 0:02:40]} 9. O-O {[%clk 0:02:55]}  b5 {[%clk 0:02:36]} 10. a4 {[%clk 0:02:45]}  bxa4 {[%clk 0:02:35]} 11. Rxa4 {[%clk 0:02:44]}  a5 {[%clk 0:02:35]} 12. Nd2 {[%clk 0:02:02]}  Nd7 {[%clk 0:02:29]} 13. f5 {[%clk 0:01:37]}  Nb6 {[%clk 0:02:26]} 14. Ra1 {[%clk 0:01:37]}  f6 {[%clk 0:01:59]} 15. g4 {[%clk 0:01:35]}  Ba6 {[%clk 0:01:56]} 16. Ng3 {[%clk 0:00:55]}  c4 {[%clk 0:01:53]} 17. dxc4 {[%clk 0:00:54]}  Nxc4 {[%clk 0:01:54]} 18. Nxc4 {[%clk 0:00:55]}  Bxc4 {[%clk 0:01:55]} 19. Rf3 {[%clk 0:00:56]}  a4 {[%clk 0:01:47]} 20. h4 {[%clk 0:00:53]}  Nb4 {[%clk 0:01:31]} 21. Bd2 {[%clk 0:00:46]}  d3 {[%clk 0:01:04]} 22. Bxb4 {[%clk 0:00:39]}  Bxb4 {[%clk 0:01:04]} 23. c3 {[%clk 0:00:39]}  Bc5+ {[%clk 0:00:55]} 24. Kh2 {[%clk 0:00:39]}  Qb6 {[%clk 0:00:40]} 25. Rb1 {[%clk 0:00:15]}  Rfd8 {[%clk 0:00:33]} 26. g5 {[%clk 0:00:14]}  d2 {[%clk 0:00:29]} 27. b4 {[%clk 0:00:07]}  axb3 {[%clk 0:00:29]} 28. Nf1 {[%clk 0:00:06]}  Qd6 {[%clk 0:00:13]} 29. gxf6 {[%clk 0:00:04]}  gxf6 {[%clk 0:00:13]} 30. Rg3+ {[%clk 0:00:04]}  Kh8 {[%clk 0:00:14]} 31. Rb2 {[%clk 0:00:04]}  Ra2 {[%clk 0:00:11]} 32. Rb1 {[%clk 0:00:03]}  Be2 {[%clk 0:00:05]} 33. Qxe2 {[%clk 0:00:01]}  d1=Q {[%clk 0:00:05]} 34. Rxd1 {[%clk 0:00:01]}  Rxe2 {[%clk 0:00:03]} 35. Rxd6 {[%clk 0:00:01]}  Rxd6 {[%clk 0:00:04]} 36. c4 {[%clk 0:00:02]}  Rb6 {[%clk 0:00:03]} 37. Rxb3 {[%clk 0:00:03]}  Rxb3 {[%clk 0:00:04]} 0-1


[Site "https://www.chess.com"]

[Event "Titled Tuesday Blitz May 30 Late 2023"]
[White "Matinian, Nikita"]
[Black "Makarian, Rudik"]
[WhiteFideId "24129100"]
[BlackFideId "44105681"]
[WhiteElo "2422"]
[BlackElo "2461"]
[Result "0-1"]
[Round "04"]
[TimeControl "180+2"]
[Date "2023.05.31"]
[WhiteClock "0:00:27"]
[BlackClock "0:01:38"]

1. e4 {[%clk 0:03:00]}  c5 {[%clk 0:03:00]} 2. Nf3 {[%clk 0:03:00]}  Nc6 {[%clk 0:02:59]} 3. Bb5 {[%clk 0:03:00]}  e6 {[%clk 0:03:00]} 4. c3 {[%clk 0:02:59]}  a6 {[%clk 0:02:41]} 5. Bxc6 {[%clk 0:02:54]}  bxc6 {[%clk 0:02:42]} 6. O-O {[%clk 0:02:49]}  Ne7 {[%clk 0:02:40]} 7. e5 {[%clk 0:02:49]}  Ng6 {[%clk 0:02:39]} 8. d4 {[%clk 0:02:42]}  Bb7 {[%clk 0:02:33]} 9. dxc5 {[%clk 0:02:30]}  Bxc5 {[%clk 0:02:34]} 10. Nbd2 {[%clk 0:02:28]}  Be7 {[%clk 0:02:27]} 11. Nc4 {[%clk 0:02:20]}  c5 {[%clk 0:02:23]} 12. Re1 {[%clk 0:02:14]}  O-O {[%clk 0:02:22]} 13. Nd6 {[%clk 0:01:21]}  Bxd6 {[%clk 0:02:18]} 14. exd6 {[%clk 0:01:22]}  Qf6 {[%clk 0:02:09]} 15. Be3 {[%clk 0:01:17]}  Rac8 {[%clk 0:01:57]} 16. c4 {[%clk 0:01:17]}  Bxf3 {[%clk 0:01:53]} 17. Qxf3 {[%clk 0:01:16]}  Qxf3 {[%clk 0:01:54]} 18. gxf3 {[%clk 0:01:16]}  Nh4 {[%clk 0:01:54]} 19. Red1 {[%clk 0:01:10]}  Rc6 {[%clk 0:01:51]} 20. Rac1 {[%clk 0:01:03]}  Rb8 {[%clk 0:01:49]} 21. b3 {[%clk 0:01:02]}  Nxf3+ {[%clk 0:01:49]} 22. Kg2 {[%clk 0:01:02]}  Nh4+ {[%clk 0:01:50]} 23. Kg3 {[%clk 0:00:47]}  Nf5+ {[%clk 0:01:50]} 24. Kg4 {[%clk 0:00:45]}  f6 {[%clk 0:01:50]} 25. h4 {[%clk 0:00:40]}  Kf7 {[%clk 0:01:50]} 26. h5 {[%clk 0:00:40]}  Nxe3+ {[%clk 0:01:37]} 27. fxe3 {[%clk 0:00:40]}  Rbb6 {[%clk 0:01:38]} 28. a3 {[%clk 0:00:27]} 0-1


[Site "https://www.chess.com"]

[Event "Titled Tuesday Blitz May 30 Late 2023"]
[White "Ibarra Jerez, Jose Carlos"]
[Black "Rastbod, Ali"]
[WhiteFideId "2226332"]
[BlackFideId "12567477"]
[WhiteElo "2638"]
[BlackElo "2274"]
[Result "1-0"]
[Round "04"]
[TimeControl "180+2"]
[Date "2023.05.31"]
[WhiteClock "0:02:12"]
[BlackClock "0:01:43"]

1. e4 {[%clk 0:03:00]}  c6 {[%clk 0:02:54]} 2. Nf3 {[%clk 0:02:59]}  d5 {[%clk 0:02:54]} 3. d3 {[%clk 0:03:00]}  Qc7 {[%clk 0:02:49]} 4. exd5 {[%clk 0:02:59]}  cxd5 {[%clk 0:02:49]} 5. c4 {[%clk 0:03:00]}  Nf6 {[%clk 0:02:50]} 6. Nc3 {[%clk 0:02:59]}  Qd8 {[%clk 0:02:45]} 7. Qe2 {[%clk 0:02:54]}  d4 {[%clk 0:02:41]} 8. Nb5 {[%clk 0:02:53]}  Nc6 {[%clk 0:02:41]} 9. Bf4 {[%clk 0:02:53]}  Qa5+ {[%clk 0:02:29]} 10. Bd2 {[%clk 0:02:52]}  Qd8 {[%clk 0:02:27]} 11. Bf4 {[%clk 0:02:52]}  Qa5+ {[%clk 0:02:27]} 12. Nd2 {[%clk 0:02:43]}  Nb4 {[%clk 0:02:04]} 13. Kd1 {[%clk 0:02:20]}  Na6 {[%clk 0:02:00]} 14. Nb3 {[%clk 0:02:12]}  Qd8 {[%clk 0:01:51]} 15. Nd6+ {[%clk 0:02:11]}  Kd7 {[%clk 0:01:43]} 16. Nxf7 {[%clk 0:02:12]} 1-0


[Site "https://www.chess.com"]

[Event "Titled Tuesday Blitz May 30 Late 2023"]
[White "Prohaszka, Peter"]
[Black "Moroni, Luca Jr"]
[WhiteFideId "726265"]
[BlackFideId "865834"]
[WhiteElo "2626"]
[BlackElo "2569"]
[Result "1-0"]
[Round "04"]
[TimeControl "180+2"]
[Date "2023.05.31"]
[WhiteClock "0:00:07"]
[BlackClock "0:00:14"]

1. d4 {[%clk 0:03:00]}  g6 {[%clk 0:03:00]} 2. c3 {[%clk 0:03:00]}  Bg7 {[%clk 0:03:00]} 3. Nf3 {[%clk 0:03:00]}  d6 {[%clk 0:03:00]} 4. Bf4 {[%clk 0:02:53]}  Nd7 {[%clk 0:02:58]} 5. h3 {[%clk 0:02:53]}  b6 {[%clk 0:02:58]} 6. e4 {[%clk 0:02:50]}  Bb7 {[%clk 0:02:57]} 7. Nbd2 {[%clk 0:02:49]}  Ngf6 {[%clk 0:02:57]} 8. Bd3 {[%clk 0:02:49]}  O-O {[%clk 0:02:56]} 9. O-O {[%clk 0:02:35]}  e6 {[%clk 0:02:55]} 10. Qe2 {[%clk 0:02:27]}  h6 {[%clk 0:02:50]} 11. Ba6 {[%clk 0:02:23]}  Qc8 {[%clk 0:02:47]} 12. Bxb7 {[%clk 0:02:22]}  Qxb7 {[%clk 0:02:48]} 13. a4 {[%clk 0:02:04]}  a6 {[%clk 0:02:46]} 14. Rfd1 {[%clk 0:01:55]}  b5 {[%clk 0:02:45]} 15. axb5 {[%clk 0:01:32]}  axb5 {[%clk 0:02:46]} 16. e5 {[%clk 0:01:28]}  dxe5 {[%clk 0:02:44]} 17. Nxe5 {[%clk 0:01:26]}  Rfe8 {[%clk 0:02:31]} 18. Nxd7 {[%clk 0:01:13]}  Nxd7 {[%clk 0:02:31]} 19. Rxa8 {[%clk 0:00:42]}  Qxa8 {[%clk 0:02:31]} 20. Qxb5 {[%clk 0:00:39]}  c6 {[%clk 0:02:12]} 21. Qd3 {[%clk 0:00:27]}  Qb7 {[%clk 0:02:06]} 22. Nc4 {[%clk 0:00:26]}  Rd8 {[%clk 0:02:01]} 23. b4 {[%clk 0:00:24]}  Nf6 {[%clk 0:01:52]} 24. Be5 {[%clk 0:00:24]}  Nd5 {[%clk 0:01:46]} 25. Ne3 {[%clk 0:00:24]}  Ne7 {[%clk 0:00:51]} 26. Bxg7 {[%clk 0:00:23]}  Kxg7 {[%clk 0:00:52]} 27. Qe4 {[%clk 0:00:22]}  Qb5 {[%clk 0:00:47]} 28. Ng4 {[%clk 0:00:17]}  Qd5 {[%clk 0:00:33]} 29. Qe5+ {[%clk 0:00:16]}  Qxe5 {[%clk 0:00:33]} 30. Nxe5 {[%clk 0:00:17]}  f6 {[%clk 0:00:30]} 31. Nd3 {[%clk 0:00:15]}  Nd5 {[%clk 0:00:31]} 32. Rc1 {[%clk 0:00:15]}  Ra8 {[%clk 0:00:27]} 33. c4 {[%clk 0:00:16]}  Nc7 {[%clk 0:00:27]} 34. Nc5 {[%clk 0:00:14]}  Kf7 {[%clk 0:00:27]} 35. Rb1 {[%clk 0:00:12]}  Rb8 {[%clk 0:00:26]} 36. Kf1 {[%clk 0:00:13]}  Ke7 {[%clk 0:00:26]} 37. Ke2 {[%clk 0:00:13]}  e5 {[%clk 0:00:26]} 38. dxe5 {[%clk 0:00:13]}  fxe5 {[%clk 0:00:27]} 39. Kd3 {[%clk 0:00:13]}  Ne8 {[%clk 0:00:25]} 40. Kc3 {[%clk 0:00:10]}  Nd6 {[%clk 0:00:25]} 41. Re1 {[%clk 0:00:11]}  Ra8 {[%clk 0:00:21]} 42. Rxe5+ {[%clk 0:00:11]}  Kf7 {[%clk 0:00:22]} 43. g4 {[%clk 0:00:10]}  Ra3+ {[%clk 0:00:21]} 44. Kd4 {[%clk 0:00:10]}  Ra2 {[%clk 0:00:20]} 45. Re6 {[%clk 0:00:10]}  Rd2+ {[%clk 0:00:14]} 46. Kc3 {[%clk 0:00:08]}  Rd1 {[%clk 0:00:15]} 47. f3 {[%clk 0:00:05]}  h5 {[%clk 0:00:14]} 48. gxh5 {[%clk 0:00:05]}  gxh5 {[%clk 0:00:15]} 49. Rh6 {[%clk 0:00:05]}  Nf5 {[%clk 0:00:13]} 50. Rxc6 {[%clk 0:00:04]}  Rc1+ {[%clk 0:00:12]} 51. Kb2 {[%clk 0:00:02]}  Rh1 {[%clk 0:00:11]} 52. Rc7+ {[%clk 0:00:02]}  Ke8 {[%clk 0:00:11]} 53. b5 {[%clk 0:00:02]}  Kd8 {[%clk 0:00:11]} 54. b6 {[%clk 0:00:03]}  Rh2+ {[%clk 0:00:11]} 55. Kc3 {[%clk 0:00:03]}  Rxh3 {[%clk 0:00:12]} 56. Ne6+ {[%clk 0:00:04]}  Ke8 {[%clk 0:00:11]} 57. b7 {[%clk 0:00:05]}  Rxf3+ {[%clk 0:00:12]} 58. Kb4 {[%clk 0:00:05]}  Ne7 {[%clk 0:00:12]} 59. b8=Q+ {[%clk 0:00:05]}  Kf7 {[%clk 0:00:13]} 60. Rxe7+ {[%clk 0:00:05]}  Kxe7 {[%clk 0:00:14]} 61. Qb7+ {[%clk 0:00:06]}  Kxe6 {[%clk 0:00:14]} 62. Qxf3 {[%clk 0:00:07]} 1-0


[Site "https://www.chess.com"]

[Event "Titled Tuesday Blitz May 30 Late 2023"]
[White "Martinez Ramirez, Lennis"]
[Black "Xiong, Jeffery"]
[WhiteFideId "3509079"]
[BlackFideId "2047640"]
[WhiteElo "2410"]
[BlackElo "2726"]
[Result "0-1"]
[Round "04"]
[TimeControl "180+2"]
[Date "2023.05.31"]
[WhiteClock "0:00:04"]
[BlackClock "0:00:43"]

1. Nf3 {[%clk 0:03:00]}  c5 {[%clk 0:03:00]} 2. c4 {[%clk 0:02:59]}  Nf6 {[%clk 0:02:59]} 3. g3 {[%clk 0:02:59]}  Nc6 {[%clk 0:02:59]} 4. Bg2 {[%clk 0:02:59]}  d5 {[%clk 0:02:59]} 5. cxd5 {[%clk 0:02:59]}  Nxd5 {[%clk 0:03:00]} 6. O-O {[%clk 0:02:59]}  e5 {[%clk 0:03:00]} 7. Nc3 {[%clk 0:02:58]}  Nc7 {[%clk 0:02:59]} 8. b3 {[%clk 0:02:42]}  Be7 {[%clk 0:02:59]} 9. Bb2 {[%clk 0:02:42]}  O-O {[%clk 0:03:00]} 10. Rc1 {[%clk 0:02:42]}  f6 {[%clk 0:02:52]} 11. d3 {[%clk 0:02:13]}  Bg4 {[%clk 0:02:52]} 12. a3 {[%clk 0:01:58]}  Rc8 {[%clk 0:02:33]} 13. Ne4 {[%clk 0:01:54]}  Ne6 {[%clk 0:02:33]} 14. e3 {[%clk 0:01:52]}  Qd7 {[%clk 0:02:31]} 15. h3 {[%clk 0:01:49]}  Bh5 {[%clk 0:02:31]} 16. g4 {[%clk 0:01:49]}  Bf7 {[%clk 0:02:31]} 17. Qc2 {[%clk 0:01:34]}  Rfd8 {[%clk 0:02:31]} 18. Nh4 {[%clk 0:01:12]}  Qxd3 {[%clk 0:02:22]} 19. Nf5 {[%clk 0:01:12]}  Bf8 {[%clk 0:02:19]} 20. b4 {[%clk 0:00:38]}  cxb4 {[%clk 0:02:18]} 21. axb4 {[%clk 0:00:38]}  Bxb4 {[%clk 0:02:16]} 22. Qa4 {[%clk 0:00:37]}  Bf8 {[%clk 0:01:29]} 23. f4 {[%clk 0:00:35]}  exf4 {[%clk 0:01:15]} 24. Bxf6 {[%clk 0:00:33]}  gxf6 {[%clk 0:01:07]} 25. Nxf6+ {[%clk 0:00:33]}  Kh8 {[%clk 0:01:08]} 26. Qa1 {[%clk 0:00:32]}  Bg7 {[%clk 0:01:06]} 27. Nxg7 {[%clk 0:00:32]}  Qxe3+ {[%clk 0:01:04]} 28. Kh1 {[%clk 0:00:31]}  Nxg7 {[%clk 0:01:05]} 29. Rce1 {[%clk 0:00:30]}  Qd4 {[%clk 0:01:05]} 30. Bxc6 {[%clk 0:00:06]}  Qxa1 {[%clk 0:00:41]} 31. Rxa1 {[%clk 0:00:07]}  Rxc6 {[%clk 0:00:42]} 32. Rxf4 {[%clk 0:00:05]}  a6 {[%clk 0:00:42]} 33. Ne4 {[%clk 0:00:04]}  Bd5 {[%clk 0:00:43]} 34. Kg1 {[%clk 0:00:04]}  Ne6 {[%clk 0:00:43]} 0-1


[Site "https://www.chess.com"]

[Event "Titled Tuesday Blitz May 30 Late 2023"]
[White "Principe, Gerson"]
[Black "Kravtsiv, Martyn"]
[WhiteFideId "3804550"]
[BlackFideId "14113147"]
[WhiteElo "2229"]
[BlackElo "2695"]
[Result "0-1"]
[Round "04"]
[TimeControl "180+2"]
[Date "2023.05.31"]
[WhiteClock "0:00:05"]
[BlackClock "0:00:21"]

1. d4 {[%clk 0:03:00]}  d5 {[%clk 0:02:59]} 2. Nf3 {[%clk 0:02:59]}  Nf6 {[%clk 0:02:57]} 3. e3 {[%clk 0:02:54]}  e6 {[%clk 0:02:57]} 4. Be2 {[%clk 0:02:54]}  Bd6 {[%clk 0:02:57]} 5. O-O {[%clk 0:02:54]}  O-O {[%clk 0:02:55]} 6. b3 {[%clk 0:02:55]}  b6 {[%clk 0:02:55]} 7. Bb2 {[%clk 0:02:55]}  Bb7 {[%clk 0:02:55]} 8. c4 {[%clk 0:02:56]}  dxc4 {[%clk 0:02:55]} 9. Bxc4 {[%clk 0:02:55]}  Nbd7 {[%clk 0:02:49]} 10. Nc3 {[%clk 0:02:48]}  a6 {[%clk 0:02:49]} 11. Rc1 {[%clk 0:02:47]}  Qe7 {[%clk 0:02:48]} 12. Qe2 {[%clk 0:02:42]}  Rfd8 {[%clk 0:02:46]} 13. e4 {[%clk 0:02:40]}  e5 {[%clk 0:02:45]} 14. d5 {[%clk 0:02:39]}  Nc5 {[%clk 0:02:37]} 15. Rfd1 {[%clk 0:02:34]}  Bc8 {[%clk 0:02:18]} 16. Qc2 {[%clk 0:02:16]}  Nh5 {[%clk 0:02:15]} 17. Be2 {[%clk 0:02:01]}  Nf4 {[%clk 0:02:14]} 18. b4 {[%clk 0:01:52]}  Nd7 {[%clk 0:02:10]} 19. a3 {[%clk 0:01:52]}  Nf8 {[%clk 0:02:03]} 20. g3 {[%clk 0:01:51]}  Nxe2+ {[%clk 0:01:59]} 21. Qxe2 {[%clk 0:01:43]}  Ng6 {[%clk 0:01:58]} 22. Nd2 {[%clk 0:01:40]}  a5 {[%clk 0:01:50]} 23. bxa5 {[%clk 0:01:20]}  Rxa5 {[%clk 0:01:47]} 24. Nc4 {[%clk 0:01:16]}  Ba6 {[%clk 0:01:47]} 25. Nb1 {[%clk 0:01:07]}  Bxc4 {[%clk 0:01:42]} 26. Rxc4 {[%clk 0:01:02]}  Rda8 {[%clk 0:01:42]} 27. Rdc1 {[%clk 0:00:59]}  R8a7 {[%clk 0:01:38]} 28. Qg4 {[%clk 0:00:52]}  Nf8 {[%clk 0:01:38]} 29. Kg2 {[%clk 0:00:48]}  Qd7 {[%clk 0:01:37]} 30. Qe2 {[%clk 0:00:46]}  h6 {[%clk 0:01:32]} 31. h3 {[%clk 0:00:42]}  Qb5 {[%clk 0:01:26]} 32. Qc2 {[%clk 0:00:39]}  Nd7 {[%clk 0:01:24]} 33. Qe2 {[%clk 0:00:21]}  Nc5 {[%clk 0:01:16]} 34. Qc2 {[%clk 0:00:20]}  Ra4 {[%clk 0:01:09]} 35. Rxa4 {[%clk 0:00:18]}  Qxa4 {[%clk 0:01:10]} 36. Qxa4 {[%clk 0:00:14]}  Rxa4 {[%clk 0:01:01]} 37. Nc3 {[%clk 0:00:11]}  Rc4 {[%clk 0:01:02]} 38. Nb5 {[%clk 0:00:05]}  Rxe4 {[%clk 0:01:01]} 39. Rc2 {[%clk 0:00:03]}  f6 {[%clk 0:00:54]} 40. Bc1 {[%clk 0:00:01]}  Ra4 {[%clk 0:00:45]} 41. Be3 {[%clk 0:00:02]}  Ra5 {[%clk 0:00:45]} 42. Nxd6 {[%clk 0:00:01]}  cxd6 {[%clk 0:00:44]} 43. Rb2 {[%clk 0:00:02]}  Ra6 {[%clk 0:00:43]} 44. Rb5 {[%clk 0:00:03]}  Kf7 {[%clk 0:00:43]} 45. g4 {[%clk 0:00:01]}  Ke7 {[%clk 0:00:42]} 46. Kg3 {[%clk 0:00:01]}  Kd7 {[%clk 0:00:42]} 47. Kh4 {[%clk 0:00:02]}  g6 {[%clk 0:00:33]} 48. Bxh6 {[%clk 0:00:01]}  Kc7 {[%clk 0:00:33]} 49. Be3 {[%clk 0:00:01]}  Rxa3 {[%clk 0:00:32]} 50. Kg3 {[%clk 0:00:02]}  f5 {[%clk 0:00:27]} 51. gxf5 {[%clk 0:00:02]}  gxf5 {[%clk 0:00:28]} 52. Kg2 {[%clk 0:00:02]}  f4 {[%clk 0:00:27]} 53. Bxc5 {[%clk 0:00:03]}  dxc5 {[%clk 0:00:24]} 54. d6+ {[%clk 0:00:03]}  Kc6 {[%clk 0:00:23]} 55. d7 {[%clk 0:00:04]}  Rd3 {[%clk 0:00:23]} 56. Rb3 {[%clk 0:00:03]}  Rxd7 {[%clk 0:00:23]} 57. h4 {[%clk 0:00:04]}  e4 {[%clk 0:00:22]} 58. Rh3 {[%clk 0:00:04]}  Rg7+ {[%clk 0:00:21]} 59. Kf1 {[%clk 0:00:04]}  Kd5 {[%clk 0:00:21]} 60. Ke2 {[%clk 0:00:05]}  Rh7 {[%clk 0:00:21]} 61. h5 {[%clk 0:00:06]}  Rh6 {[%clk 0:00:21]} 62. Kd2 {[%clk 0:00:05]}  Ke5 {[%clk 0:00:21]} 63. Kc3 {[%clk 0:00:05]}  Kf5 {[%clk 0:00:21]} 0-1


[Site "https://www.chess.com"]